bitfinex-derivatives/quotes_BTCF0:USTF0_20241210
["timestamp","ask_amount","ask_price","bid_price","bid_amount"]
[1733846130078,0.3608,96070.0,96063.0,0.00012]
[1733846130274,0.3608,96070.0,96058.0,1.5]
[1733846130275,0.3608,96070.0,96069.0,0.00012]
[1733846130471,0.412821,96070.0,96069.0,0.00012]
[1733846130668,0.41294857,96070.0,96069.0,0.00012]
[1733846131079,0.41894857,96070.0,96069.0,0.00012]
[1733846131974,0.41894857,96070.0,96034.0,0.00156198]
[1733846131975,0.66692757,96070.0,96034.0,0.00156198]
[1733846132277,6e-05,96035.0,96034.0,0.00156198]
[1733846132583,0.052033,96050.0,96034.0,0.00156198]
[1733846132772,0.052033,96050.0,96047.0,0.3608]
[1733846132975,0.3608,96054.0,96034.0,0.00156198]
[1733846133183,0.052055,96008.0,96007.0,0.00012]
[1733846133378,0.052068,95984.0,95975.0,0.00076]
[1733846133580,0.3608,95984.0,95973.0,0.02064339]
[1733846133780,6e-05,95976.0,95973.0,0.02064339]
[1733846134086,6e-05,95974.0,95973.0,0.02064339]
[1733846134379,6e-05,95974.0,95964.0,0.052079]
[1733846134380,6e-05,95974.0,95964.0,0.052078]
[1733846134681,0.00012221,95975.0,95968.0,0.052077]
[1733846134890,0.00012221,95975.0,95964.0,0.3608]
[1733846135474,0.052076,95970.0,95964.0,0.3608]
[1733846135780,0.00012221,95975.0,95965.0,0.00521023]
[1733846135781,0.052078,95966.0,95965.0,0.00521023]
[1733846135984,0.00012221,95975.0,95965.0,0.00521023]
[1733846136190,0.00012221,95975.0,95972.0,0.3608]
[1733846136579,0.00012221,95975.0,95973.0,0.052074]
[1733846136775,0.00012221,95975.0,95972.0,0.3608]
[1733846137076,0.00012221,95975.0,95966.0,1.5008]
[1733846137283,0.052074,95973.0,95965.0,0.00521023]
[1733846137587,0.00012221,95975.0,95965.0,0.00521023]
[1733846138090,0.00012221,95975.0,95974.0,0.00012]
[1733846138582,0.36092221,95975.0,95974.0,0.00012]
[1733846138988,0.052078,95966.0,95965.0,0.00521023]
[1733846139285,0.052085,95953.0,95938.0,0.3608]
[1733846139586,0.052085,95953.0,95944.0,0.36236333]
[1733846139587,6e-05,95953.0,95944.0,0.36236333]
[1733846139977,6e-05,95945.0,95944.0,0.41445333]
[1733846140683,6e-05,95945.0,95944.0,0.36236333]
[1733846140879,6e-05,95945.0,95944.0,0.00156333]
[1733846141387,0.052149,95945.0,95944.0,0.00156333]
[1733846142087,6e-05,95945.0,95944.0,0.00156333]
[1733846142288,6e-05,95945.0,95944.0,1.50156333]
[1733846142488,6e-05,95945.0,95944.0,0.00156333]
[1733846142687,0.052095,95935.0,95934.0,0.00010356]
[1733846143191,0.052155,95935.0,95934.0,0.00010356]
[1733846143490,6e-05,95935.0,95934.0,0.00010356]
[1733846143685,6e-05,95935.0,95934.0,0.05219856]
[1733846144086,6e-05,95935.0,95934.0,1.55219856]
[1733846144289,0.00907683,95945.0,95944.0,0.05209]
[1733846144478,0.00907683,95945.0,95944.0,0.41289]
[1733846144683,0.00907683,95945.0,95944.0,0.41301]
[1733846144884,0.00607683,95945.0,95944.0,0.41301]
[1733846145180,7.683e-05,95945.0,95944.0,1.91301]
[1733846145391,7.683e-05,95945.0,95944.0,1.91626644]
[1733846145591,1e-08,95945.0,95944.0,1.92593358]
[1733846145786,0.00600001,95945.0,95944.0,1.92693358]
[1733846145983,0.00600001,95945.0,95944.0,1.92693371]
[1733846146288,0.02037653,95987.0,95944.0,1.92693371]
[1733846146289,0.052058,96004.0,95974.0,0.052073]
[1733846146487,0.052058,96004.0,95975.0,0.7216]
[1733846146692,0.3608,96021.0,95975.0,0.72172]
[1733846146894,0.3608,96013.0,95975.0,0.72172]
[1733846147193,0.00015453,95976.0,95975.0,0.72497553]
[1733846147378,0.00015453,95976.0,95975.0,0.72172]
[1733846147780,0.00015453,95976.0,95975.0,0.00012]
[1733846147989,0.05208,95962.0,95961.0,0.3608]
[1733846148389,0.052084,95955.0,95954.0,0.36236329]
[1733846148691,0.052144,95955.0,95954.0,0.36236329]
[1733846149089,0.36086,95955.0,95936.0,0.30829118]
[1733846149285,0.36086,95955.0,95941.0,0.052091]
[1733846149592,0.3608,95955.0,95936.0,0.30829118]
[1733846149982,0.3608,95955.0,95949.0,0.052087]
[1733846150180,0.3608,95955.0,95951.0,0.052086]
[1733846150693,0.3608,95955.0,95945.0,0.3608]
[1733846150694,0.3628,95955.0,95936.0,0.30829118]
[1733846150891,0.002,95955.0,95947.0,0.052088]
[1733846151285,0.3608,95955.0,95936.0,0.67876914]
[1733846151594,0.3608,95943.0,95936.0,0.30829118]
[1733846151895,0.052093,95938.0,95936.0,0.30829118]
[1733846152992,0.3608,95943.0,95936.0,0.005]
[1733846152993,0.05218574,95937.0,95936.0,0.005]
[1733846153189,0.05218574,95937.0,95934.0,0.00010356]
[1733846153394,0.3608,95935.0,95920.0,0.2472954]
[1733846153590,0.412902,95921.0,95920.0,0.2472954]
[1733846155094,0.3608,95921.0,95920.0,0.2472954]
[1733846155302,0.3648,95921.0,95920.0,0.2472954]
[1733846155590,0.3648,95921.0,95920.0,0.2993984]
[1733846155988,0.3718,95921.0,95920.0,0.3003984]
[1733846156187,0.011,95921.0,95920.0,0.3003984]
[1733846156587,0.011,95921.0,95920.0,1.8003984]
[1733846157297,6e-05,95935.0,95920.0,2.0482954]
[1733846157602,0.052102,95921.0,95920.0,0.2482954]
[1733846157988,0.052102,95921.0,95920.0,0.001]
[1733846157989,0.056102,95921.0,95920.0,0.001]
[1733846158186,0.004,95921.0,95920.0,0.001]
[1733846158491,0.004,95921.0,95919.0,0.052103]
[1733846158492,0.01,95921.0,95919.0,0.052103]
[1733846158891,6e-05,95920.0,95919.0,0.052103]
[1733846159298,0.052097,95932.0,95913.0,0.3608]
[1733846159489,0.3608,95929.0,95915.0,0.052105]
[1733846159801,0.3608,95929.0,95913.0,0.3608]
[1733846159802,0.0521,95925.0,95919.0,0.003]
[1733846159988,0.0521,95925.0,95920.0,0.001]
[1733846160294,0.052101,95923.0,95920.0,0.001]
[1733846160597,0.052102,95921.0,95920.0,0.001]
[1733846160890,0.773702,95921.0,95919.0,0.003]
[1733846161692,0.773702,95921.0,95920.0,0.001]
[1733846162090,0.36086,95935.0,95920.0,0.001]
[1733846162303,0.36086,95935.0,95921.0,1.5]
[1733846162493,0.36086,95935.0,95934.0,0.00012]
[1733846162792,0.773755,95935.0,95934.0,0.00012]
[1733846162992,0.412955,95935.0,95934.0,0.00012]
[1733846163196,6e-05,95935.0,95934.0,1.50012]
[1733846163493,0.0211933,95972.0,95934.0,1.81000344]
[1733846163685,6e-05,95976.0,95952.0,0.3608]
[1733846163886,6e-05,95976.0,95974.0,0.052073]
[1733846164092,6e-05,95976.0,95975.0,0.00012]
[1733846164390,6e-05,95976.0,95975.0,0.36102407]
[1733846164892,0.052132,95976.0,95975.0,0.00022407]
[1733846165091,0.054132,95976.0,95975.0,0.00022407]
[1733846165290,0.354132,95976.0,95975.0,0.00022407]
[1733846165493,0.054132,95976.0,95975.0,0.00022407]
[1733846165695,0.00206,95976.0,95975.0,0.00022407]
[1733846166315,0.00306,95976.0,95975.0,0.00022407]
[1733846166489,0.00306,95976.0,95965.0,0.3608]
[1733846166490,0.00206,95976.0,95965.0,0.24827446]
[1733846166692,0.052083,95956.0,95955.0,0.24827446]
[1733846166890,0.052083,95956.0,95943.0,0.3608]
[1733846166891,0.052083,95956.0,95949.0,0.052087]
[1733846167094,0.052083,95956.0,95943.0,0.3608]
[1733846167095,0.052079,95964.0,95948.0,0.24827446]
[1733846167298,0.3608,95966.0,95949.0,0.24827446]
[1733846167495,0.052079,95965.0,95958.0,0.052082]
[1733846167696,0.3608,95966.0,95953.0,0.24827446]
[1733846167902,0.3608,95966.0,95965.0,0.052078]
[1733846168090,0.00106,95976.0,95973.0,0.052074]
[1733846168293,0.00106,95976.0,95965.0,0.00012]
[1733846168488,0.00106,95976.0,95975.0,0.3596084]
[1733846168797,0.00106,95976.0,95965.0,0.00012]
[1733846168997,0.36186,95976.0,95965.0,0.00012]
[1733846169193,0.00106,95976.0,95965.0,0.00012]
[1733846169498,6e-05,95976.0,95975.0,0.052073]
[1733846169704,0.412856,96007.0,95972.0,0.3608]
[1733846169891,0.052062,95995.0,95980.0,0.05207]
[1733846170097,0.00056001,96007.0,95980.0,0.21662671]
[1733846170302,0.052057,96005.0,95992.0,0.052064]
[1733846170494,0.3608,96008.0,95999.0,0.05206]
[1733846170697,9.123e-05,96002.0,95999.0,0.41286]
[1733846171407,9.123e-05,96002.0,96000.0,0.00325493]
[1733846171602,9.123e-05,96002.0,96001.0,0.00325493]
[1733846171992,9.123e-05,96002.0,95987.0,0.3608]
[1733846172302,9.123e-05,96002.0,95989.0,0.02132051]
[1733846172509,9.123e-05,96002.0,95992.0,0.052064]
[1733846172804,9.123e-05,96002.0,96000.0,0.052059]
[1733846173109,9.123e-05,96002.0,95997.0,0.3608]
[1733846173304,9.123e-05,96002.0,95996.0,0.3608]
[1733846173499,6e-05,95998.0,95997.0,0.052061]
[1733846173805,6e-05,95998.0,95997.0,1.86405511]
[1733846174408,6e-05,95998.0,95997.0,1.86731015]
[1733846174801,6e-05,95998.0,95997.0,1.91937115]
[1733846175399,6e-05,95998.0,95997.0,1.86731015]
[1733846175903,0.05212,95998.0,95997.0,0.00651015]
[1733846176211,0.05212,95998.0,95997.0,0.00325504]
[1733846176595,6e-05,95998.0,95997.0,0.00725504]
[1733846176802,0.05212,95998.0,95997.0,0.00725504]
[1733846177096,0.05212,95998.0,95997.0,0.00325504]
[1733846177304,0.05212,95998.0,95997.0,0.00725504]
[1733846178403,0.05412,95998.0,95997.0,0.0085104]
[1733846178605,0.05412,95998.0,95997.0,0.00525504]
[1733846178801,0.00206,95998.0,95997.0,0.00525504]
[1733846179106,0.00206,95998.0,95997.0,0.00325504]
[1733846179107,0.00306,95998.0,95997.0,0.00325504]
[1733846179607,0.00306,95998.0,95997.0,0.00651015]
[1733846180012,0.00306,95998.0,95997.0,0.00651006]
[1733846180013,0.00206,95998.0,95997.0,0.00651006]
[1733846180197,0.00306,95998.0,95977.0,0.00156287]
[1733846180396,0.052068,95985.0,95977.0,0.00156287]
[1733846180595,6e-05,95978.0,95977.0,0.00156287]
[1733846181399,6e-05,95978.0,95964.0,0.3608]
[1733846181400,0.052072,95977.0,95964.0,0.3608]
[1733846181605,0.3608,95967.0,95965.0,0.0206666]
[1733846181910,6e-05,95998.0,95965.0,0.052198]
[1733846181911,6e-05,95966.0,95965.0,0.052198]
[1733846182208,6e-05,95966.0,95965.0,1.552198]
[1733846182507,6e-05,95966.0,95965.0,1.555198]
[1733846182703,6e-05,95966.0,95965.0,1.855198]
[1733846183096,6e-05,95966.0,95965.0,1.86875406]
[1733846183706,6e-05,95966.0,95965.0,1.56875406]
[1733846183901,0.052069,95983.0,95970.0,0.05065005]
[1733846184098,0.052072,95978.0,95965.0,1.51723606]
[1733846184305,0.3608,95992.0,95974.0,0.052073]
[1733846184603,0.3608,95992.0,95970.0,0.21662671]
[1733846185010,0.412864,95992.0,95977.0,0.052071]
[1733846185704,0.052066,95987.0,95971.0,0.3608]
[1733846185904,0.3608,95992.0,95971.0,0.3608]
[1733846186105,6e-05,95972.0,95971.0,0.3608]
[1733846186317,6e-05,95972.0,95965.0,1.50676]
[1733846186604,0.3608,96000.0,95971.0,0.3608]
[1733846186811,0.3608,96000.0,95996.0,0.052062]
[1733846187202,9.123e-05,96002.0,95996.0,0.052062]
[1733846187800,9.123e-05,96002.0,95997.0,1.5]
[1733846188106,0.00506,95998.0,95997.0,1.8608]
[1733846188712,0.00506,95998.0,95997.0,0.3608]
[1733846188906,0.00306,95998.0,95988.0,0.37081616]
[1733846189101,0.00306,95998.0,95997.0,0.3608]
[1733846189311,0.00306,95998.0,95997.0,1.8608]
[1733846189512,0.00606,95998.0,95997.0,1.8608]
[1733846189811,0.00606,95998.0,95997.0,1.5]
[1733846190418,0.00506,95998.0,95997.0,1.5]
[1733846190613,0.00506,95998.0,95970.0,0.21662671]
[1733846190813,0.052064,95991.0,95978.0,0.412871]
[1733846191011,0.00506,95998.0,95978.0,0.37055627]
[1733846191213,0.00506,95998.0,95979.0,1.5]
[1733846191518,0.3608,95980.0,95979.0,1.5]
[1733846191705,0.3608,95980.0,95970.0,0.24795242]
[1733846191905,0.41287,95980.0,95969.0,0.00982874]
[1733846192112,0.41287,95980.0,95962.0,0.24795242]
[1733846192113,0.3608,95980.0,95963.0,0.052079]
[1733846192312,0.36586,95998.0,95979.0,0.3608]
[1733846192617,0.36286,95998.0,95980.0,0.05207]
[1733846192806,0.36286,95998.0,95966.0,0.00056]
[1733846192807,0.3608,95981.0,95966.0,0.00056]
[1733846193010,0.052074,95974.0,95965.0,0.00012]
[1733846193210,6e-05,95967.0,95965.0,0.00012]
[1733846193515,0.052078,95966.0,95965.0,0.00012]
[1733846193710,0.05217971,95966.0,95965.0,0.00012]
[1733846193906,0.052083,95957.0,95956.0,0.00156325]
[1733846194113,0.412883,95957.0,95956.0,0.00156325]
[1733846194315,0.412943,95957.0,95956.0,0.00156325]
[1733846194606,0.41436979,95957.0,95956.0,0.00156325]
[1733846194909,0.36228679,95957.0,95946.0,0.00976704]
[1733846195112,0.3608,95947.0,95940.0,0.24795242]
[1733846195310,0.36086,95947.0,95942.0,0.01006803]
[1733846195509,6e-05,95943.0,95942.0,0.01006803]
[1733846195709,0.00241715,95943.0,95942.0,0.01006803]
[1733846196322,0.00241715,95943.0,95942.0,0.37086803]
[1733846196508,0.00244982,95943.0,95942.0,0.37086803]
[1733846197213,0.00244982,95943.0,95942.0,0.0001009]
[1733846197811,0.00244982,95943.0,95942.0,0.0011009]
[1733846198316,0.00244982,95943.0,95942.0,0.0001009]
[1733846199928,1.1807,96121.0,95942.0,1.0217009]
[1733846199929,0.3608,95981.0,95942.0,1.0217009]
[1733846200126,0.00010171,95966.0,95965.0,0.3608]
[1733846200420,0.00010171,95966.0,95965.0,0.72172]
[1733846200620,6e-05,95967.0,95966.0,0.052078]
[1733846201022,6e-05,95967.0,95966.0,0.052198]
[1733846201633,0.0001441,95967.0,95966.0,0.052198]
[1733846202319,0.0001441,95967.0,95966.0,1.552198]
[1733846203624,0.0001441,95967.0,95966.0,0.00012]
[1733846204034,0.0001441,95967.0,95966.0,0.00112]
[1733846204328,0.3609441,95967.0,95966.0,0.00212]
[1733846205331,0.0001441,95967.0,95966.0,0.054198]
[1733846205526,1e-07,95967.0,95966.0,0.415998]
[1733846205730,0.12413992,95986.0,95985.0,0.052068]
[1733846205920,0.12413992,95986.0,95985.0,0.412868]
[1733846206124,0.36144,96012.0,95997.0,0.052061]
[1733846206125,0.12413992,96011.0,95997.0,0.052061]
[1733846206325,0.12413992,96011.0,95997.0,0.412861]
[1733846206533,0.12413992,96011.0,95997.0,0.712981]
[1733846206734,0.12413992,96011.0,96010.0,0.412854]
[1733846206945,0.12413992,96011.0,96010.0,0.412974]
[1733846206946,8.151e-05,96011.0,96010.0,0.412974]
[1733846207743,0.51595383,96052.0,96010.0,0.412974]
[1733846207744,0.09317107,96037.0,96035.0,0.05204]
[1733846208046,0.3608,96049.0,96036.0,0.00012]
[1733846208239,0.09317107,96055.0,96041.0,0.3608]
[1733846208438,0.3608,96058.0,96048.0,0.00012]
[1733846208634,9.183e-05,96057.0,96048.0,0.052153]
[1733846208844,9.183e-05,96057.0,96041.0,0.3608]
[1733846208845,0.052031,96052.0,96041.0,0.3608]
[1733846209150,6e-05,96042.0,96041.0,0.3608]
[1733846209339,6e-05,96042.0,96039.0,0.21662671]
[1733846209538,6e-05,96042.0,96029.0,0.052043]
[1733846209539,0.3608,96040.0,96029.0,0.052043]
[1733846209843,6e-05,96030.0,96013.0,0.30994052]
[1733846210048,0.3608,96021.0,96000.0,0.21662671]
[1733846210346,0.3608,96021.0,95997.0,0.75246113]
[1733846210347,0.3608,96021.0,96005.0,0.3608]
[1733846210541,0.3129,96030.0,96022.0,0.052047]
[1733846210740,0.00013351,96029.0,96013.0,0.412852]
[1733846210935,0.00013351,96029.0,96013.0,0.3608]
[1733846211142,0.00013351,96029.0,96022.0,0.052047]
[1733846211545,0.00013351,96029.0,96014.0,0.052051]
[1733846211942,6e-05,96015.0,96014.0,0.052052]
[1733846212846,6e-05,96015.0,96014.0,1.552052]
[1733846213045,6e-05,96015.0,96014.0,1.553052]
[1733846214049,6e-05,96015.0,96014.0,1.555052]
[1733846214551,6e-05,96015.0,96014.0,1.553052]
[1733846214748,6e-05,96015.0,96014.0,1.556052]
[1733846215052,6e-05,96015.0,96014.0,0.056052]
[1733846215755,6e-05,96015.0,96014.0,0.416852]
[1733846216449,6e-05,96015.0,96014.0,1.916852]
[1733846217352,6e-05,96015.0,96014.0,0.416852]
[1733846220446,6e-05,96015.0,96014.0,0.3648]
[1733846220642,0.052056,96007.0,95995.0,0.36090621]
[1733846220846,0.412857,96005.0,95995.0,0.36090621]
[1733846221045,0.052062,95996.0,95995.0,0.00010621]
[1733846221245,0.3608,95996.0,95983.0,0.00965107]
[1733846221447,0.3608,95996.0,95963.0,0.3608]
[1733846221448,0.3608,95984.0,95963.0,0.3608]
[1733846221649,0.052069,95983.0,95973.0,0.00989188]
[1733846221855,6e-05,95981.0,95973.0,0.00989188]
[1733846222250,6e-05,95981.0,95964.0,1.5]
[1733846222450,0.052076,95969.0,95949.0,0.05218556]
[1733846222649,0.3608,95966.0,95954.0,0.052084]
[1733846222849,0.3608,95966.0,95951.0,0.37053134]
[1733846223051,0.052087,95950.0,95949.0,9.856e-05]
[1733846223252,0.05209,95944.0,95943.0,0.02134856]
[1733846223455,0.05209,95944.0,95912.0,0.18553507]
[1733846223456,0.052095,95935.0,95912.0,0.18553507]
[1733846223657,0.052096,95934.0,95921.0,0.052102]
[1733846223846,0.3608,95936.0,95912.0,0.3608]
[1733846223847,6e-05,95933.0,95912.0,0.3608]
[1733846224051,0.3608,95924.0,95913.0,0.052107]
[1733846224249,0.00012341,95923.0,95914.0,0.052106]
[1733846224554,0.3608,95915.0,95902.0,1.5]
[1733846224761,0.052113,95902.0,95892.0,9.449e-05]
[1733846224971,0.3608,95904.0,95892.0,9.449e-05]
[1733846224972,0.052117,95893.0,95892.0,9.449e-05]
[1733846225264,0.412917,95893.0,95892.0,9.449e-05]
[1733846225560,0.71304501,95893.0,95892.0,9.449e-05]
[1733846225861,0.052125,95880.0,95879.0,0.24738009]
[1733846226057,0.21662671,95889.0,95879.0,0.24738009]
[1733846226058,0.3608,95885.0,95879.0,0.24738009]
[1733846226258,6e-05,95880.0,95879.0,0.24738009]
[1733846226556,0.00112801,95893.0,95892.0,0.052118]
[1733846226758,0.00112801,95893.0,95892.0,0.412918]
[1733846227154,0.3608,95932.0,95892.0,0.412918]
[1733846227353,0.3608,95932.0,95915.0,0.3608]
[1733846227658,0.052119,95891.0,95889.0,0.00156439]
[1733846227862,0.3608,95890.0,95889.0,0.00156439]
[1733846228062,0.36099056,95890.0,95889.0,0.00156439]
[1733846228560,0.00019056,95890.0,95888.0,0.05212]
[1733846228756,0.00019056,95890.0,95880.0,9.709e-05]
[1733846228955,0.3608,95888.0,95880.0,9.709e-05]
[1733846229163,0.3608,95886.0,95880.0,9.709e-05]
[1733846229455,0.052124,95882.0,95880.0,9.709e-05]
[1733846229657,6e-05,95881.0,95880.0,9.709e-05]
[1733846229857,6e-05,95881.0,95861.0,0.00156484]
[1733846230264,0.052124,95882.0,95869.0,0.05213]
[1733846230566,0.3608,95886.0,95861.0,0.00156484]
[1733846230567,0.052128,95874.0,95861.0,0.00156484]
[1733846230765,0.052129,95873.0,95861.0,0.00156484]
[1733846231063,0.3608,95877.0,95861.0,0.05369884]
[1733846231253,0.3608,95869.0,95844.0,0.3608]
[1733846231456,0.052142,95848.0,95836.0,0.36090147]
[1733846231660,6e-05,95855.0,95836.0,0.36090147]
[1733846231861,6e-05,95855.0,95853.0,0.3608]
[1733846232068,6e-05,95855.0,95854.0,0.052139]
[1733846232358,6e-05,95855.0,95854.0,1.552139]
[1733846232565,6e-05,95855.0,95854.0,1.567139]
[1733846233357,0.00011415,95868.0,95854.0,1.567139]
[1733846233557,0.00011415,95868.0,95867.0,0.412932]
[1733846233760,0.3608,95897.0,95888.0,0.05212]
[1733846233955,0.3608,95908.0,95894.0,0.052117]
[1733846234253,0.3608,95908.0,95907.0,0.00012]
[1733846234766,0.36089847,95908.0,95907.0,0.00012]
[1733846234964,9.847e-05,95908.0,95907.0,0.00012]
[1733846235672,0.00809847,95908.0,95907.0,0.00012]
[1733846235865,0.01609847,95908.0,95907.0,0.00112]
[1733846236860,0.67689847,95908.0,95885.0,0.00981027]
[1733846237070,0.3608,95890.0,95885.0,0.00981027]
[1733846237263,0.052133,95864.0,95847.0,0.05370704]
[1733846237457,8.456e-05,95863.0,95855.0,0.052138]
[1733846238268,8.456e-05,95863.0,95847.0,0.00156504]
[1733846238468,0.052136,95859.0,95848.0,1.5]
[1733846238666,0.3608,95861.0,95848.0,1.5]
[1733846238971,0.412935,95861.0,95860.0,0.00012]
[1733846239674,8.456e-05,95863.0,95860.0,0.00012]
[1733846239863,8.456e-05,95863.0,95861.0,0.052135]
[1733846240179,8.456e-05,95863.0,95862.0,0.00012]
[1733846241865,8.456e-05,95863.0,95862.0,0.052254]
[1733846242065,8.456e-05,95863.0,95862.0,0.413054]
[1733846242267,0.3608,95905.0,95862.0,2.17076416]
[1733846242474,0.3608,95905.0,95892.0,0.3608]
[1733846242766,0.86452671,95930.0,95904.0,0.00012]
[1733846242767,0.3608,95925.0,95904.0,0.00012]
[1733846242970,0.052107,95912.0,95904.0,0.00012]
[1733846243272,0.3608,95925.0,95910.0,0.412908]
[1733846243273,0.00012139,95911.0,95910.0,0.412908]
[1733846243569,0.00012139,95911.0,95910.0,0.3608]
[1733846243874,0.052114,95900.0,95885.0,0.3608]
[1733846244172,6e-05,95886.0,95882.0,0.02050993]
[1733846244476,0.21662671,95900.0,95882.0,0.02050993]
[1733846244477,0.36086,95883.0,95882.0,0.02050993]
[1733846244671,0.36086,95883.0,95870.0,0.052129]
[1733846244672,6e-05,95883.0,95870.0,0.052129]
[1733846244862,6e-05,95883.0,95881.0,0.052124]
[1733846245069,0.00010701,95885.0,95881.0,0.052124]
[1733846245879,0.052125,95879.0,95877.0,0.3608]
[1733846246174,0.052125,95879.0,95867.0,0.3608]
[1733846246377,0.052125,95879.0,95863.0,0.052134]
[1733846246564,0.052125,95879.0,95860.0,0.02053079]
[1733846246767,0.052125,95879.0,95864.0,0.052133]
[1733846246970,0.00010701,95885.0,95866.0,0.052132]
[1733846247169,0.00010701,95885.0,95852.0,0.3608]
[1733846247170,0.052136,95859.0,95852.0,0.3608]
[1733846247361,0.3608,95860.0,95849.0,0.3608]
[1733846247566,0.3608,95852.0,95838.0,0.3608]
[1733846247766,6e-05,95850.0,95838.0,0.3608]
[1733846247963,6e-05,95848.0,95838.0,0.3608]
[1733846249670,0.00306,95848.0,95838.0,0.412947]
[1733846249869,0.00306,95848.0,95847.0,0.05370804]
[1733846250477,0.00417386,95848.0,95847.0,0.05370804]
[1733846250982,0.00417386,95848.0,95847.0,0.41450804]
[1733846251473,0.00417386,95848.0,95847.0,0.00156504]
[1733846251774,0.00417386,95848.0,95836.0,0.00010147]
[1733846251977,0.052148,95838.0,95836.0,0.00010147]
[1733846252170,6e-05,95837.0,95836.0,0.00010147]
[1733846252476,0.00117386,95837.0,95836.0,0.00010147]
[1733846253282,0.00117386,95837.0,95836.0,0.00110147]
[1733846254868,0.09342323,95837.0,95836.0,0.00110147]
[1733846255069,0.09342323,95837.0,95836.0,0.00010147]
[1733846255264,0.39439088,95837.0,95836.0,0.004]
[1733846255475,0.39439088,95837.0,95802.0,0.3608]
[1733846255476,0.052163,95809.0,95808.0,0.00158]
[1733846255872,0.052163,95809.0,95800.0,0.1]
[1733846255873,0.3608,95814.0,95800.0,0.1]
[1733846256073,0.052168,95801.0,95800.0,0.1]
[1733846256269,0.052228,95801.0,95800.0,0.1]
[1733846256475,0.05346915,95801.0,95800.0,0.1]
[1733846256676,0.00130115,95801.0,95800.0,0.1]
[1733846257188,0.00130115,95801.0,95800.0,0.103]
[1733846257982,0.05346915,95801.0,95800.0,0.103]
[1733846259178,0.05346915,95801.0,95800.0,0.1]
[1733846259371,0.05346915,95801.0,95800.0,0.101]
[1733846259976,0.05446915,95801.0,95800.0,0.1]
[1733846260182,0.00230115,95801.0,95787.0,0.245998]
[1733846260482,0.052174,95789.0,95787.0,0.245998]
[1733846260686,6e-05,95788.0,95787.0,0.245998]
[1733846261684,0.00117386,95788.0,95787.0,0.245998]
[1733846261981,0.00164988,95788.0,95787.0,0.245998]
[1733846262176,0.00164988,95788.0,95774.0,0.3608]
[1733846262177,0.052176,95787.0,95774.0,0.3608]
[1733846262378,0.00164988,95788.0,95776.0,0.052181]
[1733846262581,0.052178,95783.0,95776.0,0.052181]
[1733846262786,0.00158988,95780.0,95776.0,0.052181]
[1733846263282,0.00158988,95780.0,95779.0,0.05218]
[1733846263471,0.00158988,95780.0,95779.0,1.5]
[1733846265271,0.05216,95815.0,95794.0,0.052171]
[1733846265471,0.052161,95813.0,95794.0,0.3608]
[1733846265671,0.052161,95813.0,95800.0,0.00012]
[1733846266477,0.052162,95812.0,95800.0,0.00012]
[1733846266672,0.3608,95816.0,95800.0,0.052288]
[1733846267087,0.3608,95816.0,95800.0,1.50012]
[1733846267271,0.3608,95816.0,95770.0,0.21662671]
[1733846267272,0.36098729,95801.0,95770.0,0.3608]
[1733846267476,0.21662671,95790.0,95778.0,0.3608]
[1733846267682,0.001,95780.0,95779.0,0.007]
[1733846269485,0.052179,95780.0,95771.0,0.3509]
[1733846269677,0.052176,95787.0,95771.0,0.3509]
[1733846269882,0.052176,95787.0,95775.0,0.052182]
[1733846270080,0.21662671,95800.0,95786.0,0.00012]
[1733846270284,0.05217,95796.0,95786.0,0.00012]
[1733846270486,0.052167,95802.0,95791.0,0.3608]
[1733846270793,0.00018729,95801.0,95800.0,0.00012]
[1733846272982,0.00018729,95801.0,95800.0,0.36092]
[1733846273496,0.12373716,95828.0,95800.0,0.66092]
[1733846273788,0.12895484,95828.0,95827.0,0.00012]
[1733846274386,0.12904522,95828.0,95827.0,0.052273]
[1733846274791,0.00530806,95828.0,95827.0,0.00012]
[1733846276181,0.00630806,95828.0,95827.0,0.00012]
[1733846276487,0.00830806,95828.0,95827.0,0.00012]
[1733846276894,0.00530806,95828.0,95827.0,0.00012]
[1733846277095,0.00309038,95828.0,95827.0,0.00012]
[1733846277482,0.052136,95859.0,95844.0,0.052144]
[1733846277700,0.3608,95862.0,95827.0,0.00012]
[1733846277701,0.052137,95857.0,95845.0,0.052143]
[1733846277888,0.052138,95855.0,95845.0,0.052143]
[1733846278081,0.052138,95855.0,95826.0,0.412953]
[1733846278082,0.052132,95867.0,95854.0,0.3608]
[1733846278287,0.052131,95868.0,95853.0,0.052139]
[1733846278487,0.052138,95856.0,95846.0,0.3608]
[1733846278699,0.3608,95849.0,95826.0,8.623e-05]
[1733846278885,0.05215,95834.0,95826.0,8.623e-05]
[1733846279093,6e-05,95827.0,95826.0,8.623e-05]
[1733846279394,0.0523107,95827.0,95826.0,8.623e-05]
[1733846280280,0.0523107,95827.0,95826.0,0.00108623]
[1733846280686,0.0523107,95827.0,95813.0,0.24864687]
[1733846280687,0.3523107,95827.0,95813.0,0.24864687]
[1733846280990,0.41302,95814.0,95813.0,0.24864687]
[1733846282289,0.36086,95814.0,95813.0,0.24864687]
[1733846282483,0.41302,95814.0,95813.0,0.24864687]
[1733846282689,0.05222,95814.0,95813.0,0.24864687]
[1733846282885,6e-05,95814.0,95813.0,0.24864687]
[1733846283191,6e-05,95814.0,95813.0,0.30080787]
[1733846283395,0.00106,95814.0,95813.0,0.30080787]
[1733846283587,0.00106,95814.0,95813.0,0.24864687]
[1733846283786,0.00306,95814.0,95813.0,0.24864687]
[1733846283986,0.00506,95814.0,95813.0,0.24864687]
[1733846284399,0.00506,95814.0,95813.0,0.60944687]
[1733846284594,0.0001577,95827.0,95826.0,0.052154]
[1733846284895,0.0001577,95827.0,95826.0,0.413074]
[1733846285098,0.15540429,95837.0,95836.0,0.052148]
[1733846285396,0.09345411,95852.0,95850.0,0.26876771]
[1733846285699,0.09345411,95864.0,95854.0,0.052139]
[1733846285996,0.09345411,95864.0,95863.0,0.00012]
[1733846286294,0.00011895,95864.0,95863.0,0.00012]
[1733846286885,0.05214,95851.0,95850.0,0.001]